lending/lending_fUSD_20240507
["ID","MTS","AMOUNT","RATE_DAILY","PERIOD"]
[326546509,1715100733785,-500.0,0.00025205,2]
[326546510,1715100733800,-1297.0,0.00025205,2]
[326546511,1715100733811,-1202.44,0.00025205,2]
[326546512,1715100733852,-500.0,0.00025205,2]
[326546513,1715100733863,-3515.54,0.00025205,2]
[326546514,1715100733880,-500.0,0.00025205,2]
[326546515,1715100733892,-1568.18,0.00025205,2]
[326546516,1715100733904,-1216.6,0.00025205,2]
[326546517,1715100733946,-500.0,0.00025205,2]
[326546518,1715100733956,-500.0,0.00025205,2]
[326546519,1715100733967,-2727.92,0.00025205,2]
[326546520,1715100733984,-507.24038344,0.00025205,2]
[326546521,1715100733999,-500.0,0.00025205,2]
[326546522,1715100734013,-970.03,0.00025205,2]
[326546523,1715100734080,-500.0,0.00025205,2]
[326546524,1715100734091,-4787.73,0.00025205,2]
[326546525,1715100734102,-500.0,0.00025205,2]
[326546526,1715100734136,-1475.13,0.00025205,2]
[326546527,1715100734166,-679.18,0.00025205,2]
[326546528,1715100734177,-558.06,0.00025205,2]
[326546529,1715100734187,-621.13,0.00025205,2]
[326546530,1715100734197,-500.0,0.00025205,2]
[326546531,1715100734211,-500.0,0.00025205,2]
[326546532,1715100734221,-475.14352326,0.00025205,2]
[326546533,1715100734238,-500.0,0.00025205,2]
[326546534,1715100734248,-815.1,0.00025205,2]
[326546535,1715100734258,-500.0,0.00025205,2]
[326546536,1715100734291,-2922.49,0.00025205,2]
[326546537,1715100734322,-500.0,0.00025205,2]
[326546538,1715100734347,-1366.62,0.00025205,2]
[326546539,1715100734358,-788.87,0.00025205,2]
[326546540,1715100734370,-623.66,0.00025205,2]
[326546541,1715100734390,-1485.27,0.00025205,2]
[326546542,1715100734421,-1075.12,0.00025205,2]
[326546543,1715100734433,-500.0,0.00025205,2]
[326546544,1715100734467,-500.0,0.00025205,2]
[326546545,1715100734497,-500.0,0.00025205,2]
[326546546,1715100734513,-783.09,0.00025205,2]
[326546547,1715100734569,-46372.41,0.00025205,2]
[326546548,1715100734579,-3496.26,0.00025205,2]
[326546549,1715100734604,-500.0,0.00025205,2]
[326546550,1715100734670,-500.0,0.00025205,2]
[326546551,1715100734682,-500.0,0.00025205,2]
[326546552,1715100734697,-559.75,0.00025205,2]
[326546553,1715100734707,-500.0,0.00025205,2]
[326546554,1715100734721,-6151.41,0.00025205,2]
[326546555,1715100734732,-2455.11,0.00025205,2]
[326546556,1715100734744,-500.0,0.00025205,2]
[326546557,1715100734755,-500.0,0.00025205,2]
[326546558,1715100734770,-500.0,0.00025205,2]
[326546559,1715100734780,-1749.69,0.00025205,2]
[326546560,1715100734790,-1371.86,0.00025205,2]
[326546561,1715100734800,-3497.73,0.00025205,2]
[326546562,1715100734815,-500.0,0.00025205,2]
[326546563,1715100734826,-806.41,0.00025205,2]
[326546564,1715100734840,-500.0,0.00025205,2]
[326546565,1715100734862,-948.1,0.00025205,2]
[326546566,1715100734890,-6192.67,0.00025205,2]
[326546567,1715100734901,-500.0,0.00025205,2]
[326546568,1715100734912,-863.67,0.00025205,2]
[326546569,1715100734937,-907.32,0.00025205,2]
[326546570,1715100734968,-500.0,0.00025205,2]
[326546571,1715100734977,-500.0,0.00025205,2]
[326546572,1715100734988,-501.38,0.00025205,2]
[326546573,1715100735018,-3854.9,0.00025205,2]
[326546574,1715100735028,-8947.76,0.00025205,2]
[326546575,1715100735048,-500.0,0.00025205,2]
[326546576,1715100735077,-508.22,0.00025205,2]
[326546577,1715100735104,-500.0,0.00025205,2]
[326546578,1715100735131,-5335.72,0.00025205,2]
[326546579,1715100735141,-1503.08,0.00025205,2]
[326546580,1715100735165,-3719.33,0.00025205,2]
[326546581,1715100735192,-500.0,0.00025205,2]
[326546582,1715100735203,-507.03627927,0.00025205,2]
[326546583,1715100735224,-1230.21,0.00025205,2]
[326546584,1715100735251,-1664.73,0.00025205,2]
[326546585,1715100735268,-3050.31,0.00025205,2]
[326546586,1715100735293,-723.54,0.00025205,2]
[326546587,1715100735304,-500.0,0.00025205,2]
[326546588,1715100735316,-14262.11,0.00025205,2]
[326546589,1715100735327,-3400.94,0.00025205,2]
[326546590,1715100735358,-5916.29,0.00025205,2]
[326546591,1715100735369,-500.0,0.00025205,2]
[326546592,1715100735383,-500.0,0.00025205,2]
[326546593,1715100735421,-500.0,0.00025205,2]
[326546594,1715100735433,-742.15,0.00025205,2]
[326546595,1715100735446,-500.0,0.00025205,2]
[326546596,1715100735471,-849.65,0.00025205,2]
[326546597,1715100735500,-3107.68,0.00025205,2]
[326546598,1715100735510,-500.0,0.00025205,2]
[326546599,1715100735521,-3276.03,0.00025205,2]
[326546600,1715100735557,-553.72,0.00025205,2]
[326546601,1715100735570,-567.58,0.00025205,2]
[326546602,1715100735585,-766.13,0.00025205,2]
[326546603,1715100735622,-3453.67,0.00025205,2]
[326546604,1715100735634,-500.0,0.00025205,2]
[326546605,1715100735651,-500.0,0.00025205,2]
[326546606,1715100735686,-654.05,0.00025205,2]
[326546607,1715100735696,-6145.48,0.00025205,2]
[326546608,1715100735707,-1020.1,0.00025205,2]
[326546609,1715100735718,-1426.13,0.00025205,2]
[326546610,1715100735732,-21255.09,0.00025205,2]
[326546611,1715100735743,-500.0,0.00025205,2]
[326546612,1715100735756,-552.98,0.00025205,2]
[326546613,1715100735789,-500.0,0.00025205,2]
[326546614,1715100735799,-500.0,0.00025205,2]
[326546615,1715100735812,-500.0,0.00025205,2]
[326546616,1715100735824,-10028.3,0.00025205,2]
[326546617,1715100735836,-1191.0,0.00025205,2]
[326546618,1715100735868,-1029.15,0.00025205,2]
[326546619,1715100735880,-1648.62,0.00025205,2]
[326546620,1715100735892,-500.0,0.00025205,2]
[326546621,1715100735910,-502.47986359,0.00025205,2]
[326546622,1715100735922,-500.0,0.00025205,2]
[326546623,1715100735938,-2857.63,0.00025205,2]
[326546624,1715100735963,-500.0,0.00025205,2]
[326546625,1715100735989,-500.0,0.00025205,2]
[326546626,1715100736019,-1844.38,0.00025205,2]
[326546627,1715100736030,-658.88,0.00025205,2]
[326546628,1715100736045,-2162.51,0.00025205,2]
[326546629,1715100736059,-630.52,0.00025205,2]
[326546630,1715100736122,-5581.37,0.00025205,2]
[326546631,1715100736138,-892.7,0.00025205,2]
[326546632,1715100736152,-500.0,0.00025205,2]
[326546633,1715100736172,-1465.18,0.00025205,2]
[326546634,1715100736184,-2702.27,0.00025205,2]
[326546635,1715100736201,-500.0,0.00025205,2]
[326546636,1715100736216,-500.0,0.00025205,2]
[326546637,1715100736228,-595.98,0.00025205,2]
[326546638,1715100736285,-2382.14,0.00025205,2]
[326546639,1715100736297,-500.0,0.00025205,2]
[326546640,1715100736312,-9586.67,0.00025205,2]
[326546641,1715100736326,-1783.88,0.00025205,2]
[326546642,1715100736375,-500.0,0.00025205,2]
[326546643,1715100736392,-500.0,0.00025205,2]
[326546644,1715100736437,-1228.8,0.00025205,2]
[326546645,1715100736459,-1315.3,0.00025205,2]
[326546646,1715100736496,-500.0,0.00025205,2]
[326546647,1715100736507,-2838.38,0.00025205,2]
[326546648,1715100736537,-857.45,0.00025205,2]
[326546649,1715100736548,-2516.16,0.00025205,2]
[326546650,1715100736593,-598.1258592,0.00025205,2]
[326546651,1715100736612,-590.74,0.00025205,2]
[326546652,1715100736622,-500.0,0.00025205,2]
[326546653,1715100736634,-2796.49,0.00025205,2]
[326546654,1715100736664,-2248.38,0.00025205,2]
[326546655,1715100736682,-759.73,0.00025205,2]
[326546656,1715100736700,-500.0,0.00025205,2]
[326546657,1715100736711,-883.15,0.00025205,2]
[326546658,1715100736722,-1564.15,0.00025205,2]
[326546659,1715100736744,-1226.26,0.00025205,2]
[326546660,1715100736754,-500.0,0.00025205,2]
[326546661,1715100736765,-3884.79,0.00025205,2]
[326546662,1715100736778,-554.79,0.00025205,2]
[326546663,1715100736788,-536.92,0.00025205,2]
[326546664,1715100736799,-500.0,0.00025205,2]
[326546665,1715100736822,-4991.7,0.00025205,2]
[326546666,1715100736833,-9672.4,0.00025205,2]
[326546667,1715100736843,-4438.12,0.00025205,2]
[326546668,1715100736853,-500.0,0.00025205,2]
[326546669,1715100736864,-500.0,0.00025205,2]
[326546670,1715100736874,-500.0,0.00025205,2]
[326546671,1715100736893,-627.83,0.00025205,2]
[326546672,1715100736907,-960.52,0.00025205,2]
[326546673,1715100736944,-4573.52,0.00025205,2]
[326546674,1715100736958,-3690.9,0.00025205,2]
[326546675,1715100736974,-500.0,0.00025205,2]
[326546676,1715100737028,-623.68,0.00025205,2]
[326546677,1715100737058,-500.0,0.00025205,2]
[326546678,1715100737082,-500.0,0.00025205,2]
[326546679,1715100737095,-735.18,0.00025205,2]
[326546680,1715100737124,-500.0,0.00025205,2]
[326546681,1715100737136,-500.0,0.00025205,2]
[326546682,1715100737152,-513.46,0.00025205,2]
[326546683,1715100737168,-1366.51,0.00025205,2]
[326546684,1715100737182,-708.49,0.00025205,2]
[326546685,1715100737196,-500.0,0.00025205,2]
[326546686,1715100737210,-1911.81,0.00025205,2]
[326546687,1715100737221,-1867.05,0.00025205,2]
[326546688,1715100737254,-500.0,0.00025205,2]
[326546689,1715100737303,-1448.39,0.00025205,2]
[326546690,1715100737315,-1794.17,0.00025205,2]
[326546691,1715100737327,-500.0,0.00025205,2]
[326546692,1715100737365,-500.0,0.00025205,2]
[326546693,1715100737380,-500.0,0.00025205,2]
[326546694,1715100737410,-711.31,0.00025205,2]
[326546695,1715100737421,-3155.93,0.00025205,2]
[326546696,1715100737436,-500.0,0.00025205,2]
[326546697,1715100737447,-500.0,0.00025205,2]
[326546698,1715100737459,-1613.73,0.00025205,2]
[326546699,1715100737469,-3270.24,0.00025205,2]
[326546700,1715100737486,-8727.16,0.00025205,2]
[326546701,1715100737497,-500.0,0.00025205,2]
[326546702,1715100737508,-2251.43,0.00025205,2]
[326546703,1715100737522,-500.0,0.00025205,2]
[326546704,1715100737548,-510.31,0.00025205,2]
[326546705,1715100737559,-1922.71,0.00025205,2]
[326546706,1715100737569,-2514.52,0.00025205,2]
[326546707,1715100737595,-500.0,0.00025205,2]
[326546708,1715100737616,-688.77,0.00025205,2]
[326546709,1715100737627,-500.0,0.00025205,2]
[326546710,1715100737647,-500.0,0.00025205,2]
[326546711,1715100737673,-818.11,0.00025205,2]
[326546712,1715100737687,-500.0,0.00025205,2]
[326546713,1715100737709,-4244.15,0.00025205,2]
[326546714,1715100737727,-766.66,0.00025205,2]
[326546715,1715100737745,-500.0,0.00025205,2]
[326546716,1715100737760,-1691.89,0.00025205,2]
[326546717,1715100737780,-844.84,0.00025205,2]
[326546718,1715100737801,-500.0,0.00025205,2]
[326546719,1715100737824,-500.0,0.00025205,2]
[326546720,1715100737841,-500.0,0.00025205,2]
[326546721,1715100737853,-793.23,0.00025205,2]
[326546722,1715100737871,-500.0,0.00025205,2]
[326546723,1715100737883,-891.61,0.00025205,2]
[326546724,1715100737898,-1315.31,0.00025205,2]
[326546725,1715100737915,-579.56,0.00025205,2]
[326546726,1715100737930,-1113.24,0.00025205,2]
[326546727,1715100737941,-805.88,0.00025205,2]
[326546728,1715100737953,-3463.82,0.00025205,2]
[326546729,1715100737965,-1888.59,0.00025205,2]
[326546730,1715100737980,-33618.46,0.00025205,2]
[326546731,1715100737991,-990.25,0.00025205,2]
[326546732,1715100738001,-4681.05,0.00025205,2]
[326546733,1715100738012,-3393.58,0.00025205,2]
[326546734,1715100738085,-772.07,0.00025205,2]
[326546735,1715100738098,-500.0,0.00025205,2]
[326546736,1715100738113,-500.0,0.00025205,2]
[326546737,1715100738124,-752.83,0.00025205,2]
[326546738,1715100738137,-500.0,0.00025205,2]
[326546739,1715100738206,-500.0,0.00025205,2]
[326546740,1715100738218,-2747.91,0.00025205,2]
[326546741,1715100738237,-500.0,0.00025205,2]
[326546742,1715100738282,-797.97,0.00025205,2]
[326546743,1715100738294,-16505.91,0.00025205,2]
[326546744,1715100738310,-729.09,0.00025205,2]
[326546745,1715100738322,-500.0,0.00025205,2]
[326546746,1715100738338,-500.0,0.00025205,2]
[326546747,1715100738349,-1041.85,0.00025205,2]
[326546748,1715100738363,-2512.72,0.00025205,2]
[326546749,1715100738373,-500.0,0.00025205,2]
[326546750,1715100738386,-2771.26,0.00025205,2]
[326546751,1715100738442,-2106.13,0.00025205,2]
[326546752,1715100738454,-3423.49,0.00025205,2]
[326546753,1715100738471,-1424.95,0.00025205,2]
[326546754,1715100738481,-3378.37,0.00025205,2]
[326546755,1715100738492,-500.0,0.00025205,2]
[326546756,1715100738513,-516.21048605,0.00025205,2]
[326546757,1715100738541,-500.0,0.00025205,2]
[326546758,1715100738555,-500.0,0.00025205,2]
[326546759,1715100738565,-500.0,0.00025205,2]
[326546760,1715100738581,-3243.41,0.00025205,2]
[326546761,1715100738755,-2218.45,0.00025205,2]
[326546762,1715100738791,-551.15,0.00025205,2]
[326546763,1715100738803,-651.16,0.00025205,2]
[326546764,1715100738815,-500.0,0.00025205,2]
[326546765,1715100738841,-7836.35,0.00025205,2]
[326546766,1715100738861,-4353.47,0.00025205,2]
[326546767,1715100738908,-870.97,0.00025205,2]
[326546768,1715100738924,-8683.47,0.00025205,2]
[326546769,1715100738941,-3063.67,0.00025205,2]
[326546770,1715100738951,-3171.55,0.00025205,2]
[326546771,1715100738964,-10725.39,0.00025205,2]
[326546772,1715100738977,-2148.67,0.00025205,2]
[326546773,1715100738993,-2843.52,0.00025205,2]
[326546774,1715100739011,-3816.34,0.00025205,2]
[326546775,1715100739023,-4008.86,0.00025205,2]
[326546776,1715100739035,-2590.75,0.00025205,2]
[326546777,1715100739052,-2341.57,0.00025205,2]
[326546778,1715100739079,-3493.95,0.00025205,2]
[326546779,1715100739091,-5211.98,0.00025205,2]
[326546780,1715100739103,-6071.3,0.00025205,2]
[326546781,1715100739115,-6296.84,0.00025205,2]
[326546782,1715100739153,-500.0,0.00025205,2]
[326546783,1715100739179,-4238.95,0.00025205,2]
[326546784,1715100739190,-2446.71,0.00025205,2]
[326546785,1715100739202,-1257.29,0.00025205,2]
[326546786,1715100739229,-173.77436797,0.00025216,2]
[326546787,1715100739253,-604.0,0.00025227,7]
[326546788,1715100739270,-414.71,0.00025239,2]
[326546789,1715100739281,-5945.54326208,0.00025241,2]
[326546790,1715100739294,-200.0,0.0002525,2]
[326546791,1715100739308,-2000.0,0.0002525,2]
[326546792,1715100739318,-200.0,0.0002525,2]
[326546793,1715100739333,-2744.06,0.00025325,15]
[326546794,1715100739357,-150.0,0.00025329,4]
[326546795,1715100739368,-426.12,0.00025379,2]
[326546796,1715100739381,-477.54,0.00025379,2]
[326546797,1715100739399,-1001.58,0.0002543,2]
[326546798,1715100739419,-157.050707,0.00025448,4]
[326546799,1715100739429,-460.41551454,0.00025478,2]
[326546800,1715100739447,-868.50130991,0.00025479,4]
[326546801,1715100739458,-500.0,0.00025479,2]
[326546802,1715100739474,-500.0,0.00025479,2]
[326546803,1715100739486,-500.0,0.00025479,2]
[326546804,1715100739504,-981.39,0.00025479,2]
[326546805,1715100739516,-566.73293485,0.00025479,2]
[326546806,1715100739526,-770.25,0.00025479,2]
[326546807,1715100739550,-714.86,0.00025479,2]
[326546808,1715100739607,-1038.53,0.00025479,2]
[326546809,1715100739618,-500.0,0.00025479,2]
[326546810,1715100739629,-500.0,0.00025479,2]
[326546811,1715100739648,-500.0,0.00025479,2]
[326546812,1715100739661,-500.0,0.00025479,2]
[326546813,1715100739707,-542.66890177,0.00025479,2]
[326546814,1715100739717,-500.0,0.00025479,2]
[326546815,1715100739728,-531.69,0.00025479,2]
[326546816,1715100739739,-924.39,0.00025479,2]
[326546817,1715100739773,-623.94,0.00025479,2]
[326546818,1715100739783,-500.0,0.00025479,2]
[326546819,1715100739794,-740.2,0.00025479,2]
[326546820,1715100739843,-649.43,0.00025479,2]
[326546821,1715100739855,-1098.64,0.00025479,2]
[326546822,1715100739869,-500.0,0.00025479,2]
[326546823,1715100739887,-725.44,0.00025479,2]
[326546824,1715100739903,-580.17,0.00025479,2]
[326546825,1715100739920,-500.0,0.00025479,2]
[326546826,1715100739933,-876.37,0.00025479,2]
[326546827,1715100739948,-500.0,0.00025479,2]
[326546828,1715100739963,-547.6,0.00025479,2]
[326546829,1715100739976,-500.0,0.00025479,2]
[326546830,1715100740004,-500.0,0.00025479,2]
[326546831,1715100740016,-858.69,0.00025479,2]
[326546832,1715100740027,-500.0,0.00025479,2]
[326546833,1715100740039,-500.0,0.00025479,2]
[326546834,1715100740051,-500.0,0.00025479,2]
[326546835,1715100740065,-500.93,0.00025479,2]
[326546836,1715100740083,-500.0,0.00025479,2]
[326546837,1715100740099,-500.0,0.00025479,2]
[326546838,1715100740121,-500.0,0.00025479,2]
[326546839,1715100740150,-500.0,0.00025479,2]
[326546840,1715100740174,-993.71,0.00025479,2]
[326546841,1715100740187,-500.0,0.00025479,2]
[326546842,1715100740197,-1112.29,0.00025479,2]
[326546843,1715100740210,-592.20323272,0.00025479,2]
[326546844,1715100740232,-500.0,0.00025479,2]
[326546845,1715100740274,-608.9,0.00025479,2]
[326546846,1715100740313,-744.3,0.00025479,2]
[326546847,1715100740339,-1288.3,0.00025479,2]
[326546848,1715100740351,-769.36,0.00025479,2]
[326546849,1715100740362,-500.0,0.00025479,2]
[326546850,1715100740378,-1986.0,0.00025479,2]
[326546851,1715100740391,-1221.93,0.00025479,2]
[326546852,1715100740437,-500.0,0.00025479,2]
[326546853,1715100740452,-500.0,0.00025479,2]
[326546854,1715100740464,-684.76,0.00025479,2]
[326546855,1715100740477,-500.0,0.00025479,2]
[326546856,1715100740488,-872.23,0.00025479,2]
[326546857,1715100740501,-500.0,0.00025479,2]
[326546858,1715100740514,-500.0,0.00025479,2]
[326546859,1715100740525,-509.33,0.00025479,2]
[326546860,1715100740538,-1149.17,0.00025479,2]
[326546861,1715100740551,-500.0,0.00025479,2]
[326546862,1715100740572,-500.0,0.00025479,2]
[326546863,1715100740582,-500.0,0.00025479,2]
[326546864,1715100740602,-706.36,0.00025479,2]
[326546865,1715100740621,-868.22,0.00025479,2]
[326546866,1715100740634,-544.17,0.00025479,2]
[326546867,1715100740646,-515.33,0.00025479,2]
[326546868,1715100740661,-500.0,0.00025479,2]
[326546869,1715100740678,-500.0,0.00025479,2]
[326546870,1715100740689,-500.0,0.00025479,2]
[326546871,1715100740704,-1022.91,0.00025479,2]
[326546872,1715100740732,-500.0,0.00025479,2]
[326546873,1715100740769,-881.3,0.00025479,2]
[326546874,1715100740794,-500.0,0.00025479,2]
[326546875,1715100740819,-500.0,0.00025479,2]
[326546876,1715100740834,-500.0,0.00025479,2]
[326546877,1715100740849,-669.34,0.00025479,2]
[326546878,1715100740861,-541.81,0.00025479,2]
[326546879,1715100740874,-522.4,0.00025479,2]
[326546880,1715100740890,-500.0,0.00025479,2]
[326546881,1715100740902,-500.0,0.00025479,2]
[326546882,1715100740929,-500.0,0.00025479,2]
[326546883,1715100740953,-1030.69,0.00025479,2]
[326546884,1715100740979,-500.0,0.00025479,2]
[326546885,1715100740993,-500.0,0.00025479,2]
[326546886,1715100741004,-500.0,0.00025479,2]
[326546887,1715100741022,-500.0,0.00025479,2]
[326546888,1715100741033,-500.0,0.00025479,2]
[326546889,1715100741060,-1512.55,0.00025479,2]
[326546890,1715100741078,-500.0,0.00025479,2]
[326546891,1715100741091,-500.0,0.00025479,2]
[326546892,1715100741105,-887.83,0.00025479,2]
[326546893,1715100741120,-500.0,0.00025479,2]
[326546894,1715100741132,-976.56,0.00025479,2]
[326546895,1715100741160,-738.65,0.00025479,2]
[326546896,1715100741198,-500.0,0.00025479,2]
[326546897,1715100741217,-500.0,0.00025479,2]
[326546898,1715100741228,-793.34,0.00025479,2]
[326546899,1715100741285,-836.74,0.00025479,2]
[326546900,1715100741297,-1470.0,0.00025479,2]
[326546901,1715100741308,-500.0,0.00025479,2]
[326546902,1715100741321,-500.0,0.00025479,2]
[326546903,1715100741333,-500.0,0.00025479,2]
[326546904,1715100741343,-500.0,0.00025479,2]
[326546905,1715100741370,-878.28,0.00025479,2]
[326546906,1715100741399,-566.05,0.00025479,2]
[326546907,1715100741412,-1145.58,0.00025479,2]
[326546908,1715100741422,-500.0,0.00025479,2]
[326546909,1715100741441,-1024.21,0.00025479,2]
[326546910,1715100741451,-150.0,0.00025479,2]
[326546911,1715100741463,-500.0,0.00025479,2]
[326546912,1715100741482,-500.0,0.00025479,2]
[326546913,1715100741496,-500.0,0.00025479,2]
[326546914,1715100741516,-500.0,0.00025479,2]
[326546915,1715100741527,-514.06,0.00025479,2]
[326546916,1715100741553,-834.76,0.00025479,2]
[326546917,1715100741567,-567.29,0.00025479,2]
[326546918,1715100741587,-500.0,0.00025479,2]
[326546919,1715100741603,-500.0,0.00025479,2]
[326546920,1715100741615,-1224.36,0.00025479,2]
[326546921,1715100741629,-1276.79,0.00025479,2]
[326546922,1715100741645,-1683.57,0.00025479,2]
[326546923,1715100741656,-500.0,0.00025479,2]
[326546924,1715100741684,-762.3,0.00025479,2]
[326546925,1715100741695,-631.69,0.00025479,2]
[326546926,1715100741705,-500.0,0.00025479,2]
[326546927,1715100741716,-670.04,0.00025479,2]
[326546928,1715100741742,-500.0,0.00025479,2]
[326546929,1715100741765,-1243.9,0.00025479,2]
[326546930,1715100741775,-500.0,0.00025479,2]
[326546931,1715100741786,-546.45,0.00025479,2]
[326546932,1715100741802,-1076.02,0.00025479,2]
[326546933,1715100741814,-500.0,0.00025479,2]
[326546934,1715100741843,-500.0,0.00025479,2]
[326546935,1715100741859,-544.47,0.00025479,2]
[326546936,1715100741875,-533.9,0.00025479,2]
[326546937,1715100741887,-626.99,0.00025479,2]
[326546938,1715100741920,-500.0,0.00025479,2]
[326546939,1715100741939,-500.0,0.00025479,2]
[326546940,1715100741954,-500.0,0.00025479,2]
[326546941,1715100741967,-500.0,0.00025479,2]
[326546942,1715100741979,-1341.31,0.00025479,2]
[326546943,1715100741990,-2176.29,0.00025479,2]
[326546944,1715100742013,-517.46663468,0.00025479,2]
[326546945,1715100742025,-500.0,0.00025479,2]
[326546946,1715100742042,-500.0,0.00025479,2]
[326546947,1715100742059,-500.0,0.00025479,2]
[326546948,1715100742073,-502.59807031,0.00025479,2]
[326546949,1715100742084,-500.0,0.00025479,2]
[326546950,1715100742119,-500.0,0.00025479,2]
[326546951,1715100742130,-1376.62,0.00025479,2]
[326546952,1715100742143,-1009.08,0.00025479,2]
[326546953,1715100742165,-1277.62,0.00025479,2]
[326546954,1715100742181,-500.0,0.00025479,2]
[326546955,1715100742194,-577.26,0.00025479,2]
[326546956,1715100742205,-500.0,0.00025479,2]
[326546957,1715100742216,-816.74,0.00025479,2]
[326546958,1715100742237,-788.2,0.00025479,2]
[326546959,1715100742304,-662.26,0.00025479,2]
[326546960,1715100742327,-500.0,0.00025479,2]
[326546961,1715100742337,-315.9545956,0.00025479,2]
[326546962,1715100742347,-500.0,0.00025479,2]
[326546963,1715100742358,-1850.96,0.00025479,2]
[326546964,1715100742392,-991.16,0.00025479,2]
[326546965,1715100742403,-1082.39,0.00025479,2]
[326546966,1715100742417,-500.0,0.00025479,2]
[326546967,1715100742428,-500.0,0.00025479,2]
[326546968,1715100742438,-500.0,0.00025479,2]
[326546969,1715100742492,-2010.91,0.00025479,2]
[326546970,1715100742504,-500.0,0.00025479,2]
[326546971,1715100742514,-1069.36,0.00025479,2]
[326546972,1715100742552,-838.44,0.00025479,2]
[326546973,1715100742563,-1514.75,0.00025479,2]
[326546974,1715100742574,-500.0,0.00025479,2]
[326546975,1715100742598,-924.94,0.00025479,2]
[326546976,1715100742616,-705.28,0.00025479,2]
[326546977,1715100742627,-500.0,0.00025479,2]
[326546978,1715100742653,-500.0,0.00025479,2]
[326546979,1715100742668,-501.49622508,0.00025479,2]
[326546980,1715100742714,-500.0,0.00025479,2]
[326546981,1715100742730,-500.0,0.00025479,2]
[326546982,1715100742757,-811.29,0.00025479,2]
[326546983,1715100742768,-1263.74,0.00025479,2]
[326546984,1715100742780,-505.9412747,0.00025479,2]
[326546985,1715100742794,-824.39,0.00025479,2]
[326546986,1715100742809,-500.0,0.00025479,2]
[326546987,1715100742820,-500.0,0.00025479,2]
[326546988,1715100742872,-642.22,0.00025479,2]
[326546989,1715100742883,-947.11,0.00025479,2]
[326546990,1715100742908,-500.0,0.00025479,2]
[326546991,1715100742937,-500.0,0.00025479,2]
[326546992,1715100742964,-606.7,0.00025479,2]
[326546993,1715100742975,-944.04,0.00025479,2]
[326546994,1715100742986,-500.0,0.00025479,2]
[326546995,1715100742997,-500.0,0.00025479,2]
[326546996,1715100743017,-500.0,0.00025479,2]
[326546997,1715100743028,-500.0,0.00025479,2]
[326546998,1715100743049,-500.0,0.00025479,2]
[326546999,1715100743062,-505.73,0.00025479,2]
[326547000,1715100743079,-500.0,0.00025479,2]
[326547001,1715100743091,-500.0,0.00025479,2]
[326547002,1715100743102,-1475.4,0.00025479,2]
[326547003,1715100743122,-500.0,0.00025479,2]
[326547004,1715100743134,-1459.59,0.00025479,2]
[326547005,1715100743145,-500.0,0.00025479,2]
[326547006,1715100743177,-500.0,0.00025479,2]
[326547007,1715100743198,-500.0,0.00025479,2]
[326547008,1715100743268,-113.8394442,0.00025479,2]